bitfinex/quotes_ETHUSD_20250720
["timestamp","ask_amount","ask_price","bid_price","bid_amount"]
[1752990270025,4.543,3645.9,3645.6,0.1368]
[1752990271823,0.4646,3646.0,3645.6,2.87983251]
[1752990272138,4.535,3645.9,3645.6,3.33843251]
[1752990272604,4.535,3645.9,3645.6,2.87983251]
[1752990273104,2.74258318,3646.2,3645.6,2.87983251]
[1752990273301,5.87532238,3646.1,3645.5,0.4586]
[1752990273502,6.585,3646.3,3646.0,0.1368]
[1752990273703,4.531,3646.2,3646.0,0.1368]
[1752990274026,4.531,3646.2,3645.7,3.4586]
[1752990274223,4.531,3646.2,3646.1,0.1368]
[1752990274404,11.115,3646.2,3646.1,0.1368]
[1752990275541,11.112,3646.2,3646.1,0.1368]
[1752990277240,6.583,3646.2,3646.1,0.1368]
[1752990277440,11.11,3646.2,3646.1,0.1368]
[1752990277809,0.8021,3646.1,3644.8,0.7523]
[1752990278041,16.11010674,3646.2,3645.4,0.1368]
[1752990278042,2.74313417,3645.5,3645.4,0.1368]
[1752990278350,4.534,3645.5,3645.4,0.1368]
[1752990278546,4.9986,3645.5,3645.4,0.1368]
[1752990278753,7.74170794,3645.5,3645.4,0.1368]
[1752990279616,0.8021,3645.4,3644.8,0.001]
[1752990279936,7.27331895,3645.3,3645.0,0.1368]
[1752990280139,2.74336017,3645.2,3645.0,0.1368]
[1752990280318,4.53,3645.1,3645.0,0.1368]
[1752990280722,4.9946,3645.1,3645.0,0.1368]
[1752990282512,0.8021,3645.4,3645.0,0.1368]
[1752990282763,4.523,3645.3,3645.0,3.33887767]
[1752990282913,0.8286,3645.8,3645.0,3.81040677]
[1752990283114,4.523,3645.7,3645.4,0.1368]
[1752990283349,0.8286,3646.0,3645.2,10.40325921]
[1752990283560,4.524,3645.9,3645.4,3.2017155]
[1752990283726,4.524,3645.9,3645.7,0.1368]
[1752990284344,0.8286,3646.0,3645.7,0.1368]
[1752990284555,11.105,3645.9,3645.7,0.1368]
[1752990284850,6.584,3645.9,3645.6,2.74302927]
[1752990285213,6.584,3645.9,3645.8,0.1368]
[1752990285615,11.104,3645.9,3645.8,0.1368]
[1752990285838,6.584,3645.9,3645.8,0.8915]
[1752990286058,11.104,3645.9,3645.8,0.1368]
[1752990286557,6.584,3645.9,3645.8,0.1368]
[1752990286761,11.103,3645.9,3645.8,0.1368]
[1752990287843,11.102,3645.9,3645.8,0.1368]
[1752990288258,6.584,3645.9,3645.8,0.1368]
[1752990288556,11.1,3645.9,3645.8,0.1368]
[1752990288955,6.584,3645.9,3645.8,0.1368]
[1752990289163,11.098,3645.9,3645.8,0.1368]
[1752990289485,3.20915814,3646.3,3645.8,0.1368]
[1752990289630,11.097,3646.2,3645.8,0.1368]
[1752990289831,11.5616,3646.2,3645.8,0.1368]
[1752990290054,0.4646,3646.1,3645.8,0.1368]
[1752990290254,6.584,3646.2,3645.8,0.1368]
[1752990290530,0.002,3646.3,3646.0,0.1368]
[1752990290762,4.511,3646.2,3646.0,2.74273176]
[1752990291127,4.511,3646.2,3646.1,0.1368]
[1752990291672,0.002,3646.3,3646.1,0.1368]
[1752990291879,4.511,3646.2,3646.1,0.1368]
[1752990292566,0.002,3646.3,3646.1,0.1368]
[1752990292567,0.002,3646.3,3646.2,0.8063]
[1752990292860,4.511,3646.3,3646.2,0.8063]
[1752990293059,4.511,3646.3,3646.1,0.1368]
[1752990294377,0.002,3646.3,3646.1,0.1368]
[1752990294537,4.507,3646.2,3646.1,0.1368]
[1752990294981,4.507,3646.2,3646.1,2.87945653]
[1752990295467,0.002,3646.3,3646.2,2.74258131]
[1752990295658,0.002,3646.3,3646.2,5.74258131]
[1752990295862,4.503,3646.3,3646.2,6.20118131]
[1752990296376,4.504,3646.3,3646.2,6.20118131]
[1752990297273,4.501,3646.3,3646.2,7.00748131]
[1752990297574,4.501,3646.3,3646.2,8.06505207]
[1752990297980,0.002,3646.3,3646.2,8.06505207]
[1752990298342,4.498,3646.3,3646.2,12.72505205]
[1752990299070,0.002,3646.3,3646.2,12.72505205]
[1752990299291,4.497,3646.3,3646.2,12.72505205]
[1752990300376,0.002,3646.3,3646.2,12.72505205]
[1752990300669,4.497,3646.3,3646.2,12.72505205]
[1752990301869,4.495,3646.3,3646.2,12.72505205]
[1752990302178,0.002,3646.3,3646.2,12.72505205]
[1752990302477,4.495,3646.3,3646.2,12.72505205]
[1752990302682,0.002,3646.3,3646.2,12.72505205]
[1752990302871,4.495,3646.3,3646.2,12.26645205]
[1752990303278,4.495,3646.3,3646.2,11.46015205]
[1752990305852,4.495,3646.3,3646.2,11.89615205]
[1752990306644,0.002,3646.3,3646.2,11.89615205]
[1752990306847,4.495,3646.3,3646.2,11.89615205]
[1752990307357,4.496,3646.3,3646.2,11.89615205]
[1752990307745,0.002,3646.3,3646.2,11.89615205]
[1752990307945,4.496,3646.3,3646.2,11.89615205]
[1752990308783,0.002,3647.1,3647.0,2.7419797]
[1752990308983,0.002,3647.1,3647.0,6.01617767]
[1752990308984,4.493,3647.1,3647.0,6.01617767]
[1752990309359,0.002,3647.1,3647.0,6.01617767]
[1752990309686,4.493,3647.1,3647.0,6.01617767]
[1752990310253,0.002,3647.1,3647.0,6.01617767]
[1752990310561,4.491,3647.1,3647.0,6.01617767]
[1752990311394,4.48266,3647.1,3647.0,6.01617767]
[1752990311890,4.94436,3647.1,3647.0,5.7419797]
[1752990312059,6.582,3647.4,3647.1,5.74184925]
[1752990312262,4.491,3647.3,3647.1,5.74184925]
[1752990312468,6.582,3647.4,3647.2,2.74182863]
[1752990312709,4.493,3647.3,3647.1,2.74190452]
[1752990312883,6.582,3647.4,3647.2,2.74182934]
[1752990313186,6.582,3647.4,3647.3,2.74175417]
[1752990313393,11.076,3647.4,3647.3,2.74175417]
[1752990313570,6.582,3647.4,3647.3,2.74175417]
[1752990313775,11.076,3647.4,3647.3,2.74175417]
[1752990314553,11.074,3647.4,3647.3,2.74175417]
[1752990315373,6.582,3647.4,3647.3,2.74175417]
[1752990315874,11.071,3647.4,3647.3,2.74175417]
[1752990317707,0.002,3647.8,3647.1,0.34520949]
[1752990317900,4.484,3647.7,3647.5,2.74155517]
[1752990318098,4.9457,3647.7,3647.5,2.74155517]
[1752990318301,4.9457,3647.7,3647.6,2.74152867]
[1752990318501,4.9457,3647.7,3647.5,2.7415761]
[1752990318680,0.4617,3647.6,3647.5,2.7415761]
[1752990319094,0.4617,3647.6,3647.5,0.1368]
[1752990320607,0.002,3647.8,3647.5,0.1368]
[1752990320774,4.9437,3647.7,3647.5,0.1368]
[1752990321100,4.482,3647.7,3647.5,0.1368]
[1752990321306,0.002,3647.8,3647.6,2.74150256]
[1752990321470,0.002,3647.8,3647.7,2.74145351]
[1752990321671,0.002,3647.8,3647.2,0.78379002]
[1752990321672,0.4617,3647.7,3647.3,3.0]
[1752990321867,4.485,3647.8,3647.6,3.0]
[1752990322068,4.485,3647.8,3647.4,2.74165675]
[1752990322510,0.4617,3647.7,3647.4,2.74165675]
[1752990322728,0.4617,3647.6,3647.4,2.74165675]
[1752990323006,4.486,3647.5,3647.4,2.74165675]
[1752990325519,5.2691,3647.5,3647.4,2.74165675]
[1752990325720,5.7308,3647.5,3647.4,3.0]
[1752990325889,4.9477,3647.5,3647.4,5.741679]
[1752990326421,4.486,3647.5,3647.4,5.741679]
[1752990328789,4.475,3647.5,3647.4,2.741679]
[1752990329190,0.002,3647.8,3647.4,2.741679]
[1752990329390,4.9476,3647.7,3647.3,2.74173012]
[1752990329591,0.4736,3647.6,3647.5,3.0]
[1752990329792,0.4736,3647.6,3647.4,3.0]
[1752990330104,0.4756,3647.5,3647.1,0.001]
[1752990330304,4.475,3647.4,3647.2,3.0]
[1752990330504,4.9486,3647.4,3647.2,3.0]
[1752990331034,4.9486,3647.4,3647.2,2.74182733]
[1752990331320,5.2614,3647.4,3647.3,0.1368]
[1752990331925,5.735,3647.4,3647.3,0.1368]
[1752990333410,4.475,3647.4,3647.1,2.74289469]
[1752990333807,4.475,3647.4,3647.1,0.001]
[1752990334134,4.482,3647.3,3647.1,0.001]
[1752990334426,4.482,3647.3,3647.1,2.74289641]
[1752990335501,0.002,3647.5,3647.1,2.74289641]
[1752990335914,4.479,3647.4,3647.2,2.7418267]
[1752990336202,0.002,3647.5,3647.3,2.7417388]
[1752990336402,0.002,3647.5,3647.4,2.741679]
[1752990336602,0.002,3647.5,3647.4,5.741679]
[1752990336803,4.48,3647.5,3647.4,6.200179]
[1752990337440,0.002,3647.5,3647.4,6.494979]
[1752990337732,0.002,3647.5,3647.4,6.953479]
[1752990338035,0.002,3647.5,3647.4,8.44854068]
[1752990339946,0.002,3647.5,3647.4,13.10854066]
[1752990341450,0.002,3647.5,3647.4,12.65004066]
[1752990341657,0.002,3647.5,3647.4,13.10854066]
[1752990343420,0.002,3647.5,3647.4,13.24534066]
[1752990348748,0.002,3647.5,3647.4,17.70134066]
[1752990349159,0.002,3647.8,3647.7,2.74145351]
[1752990349344,0.002,3647.8,3647.7,8.41488716]
[1752990349559,0.002,3647.8,3647.7,9.01018716]
[1752990350681,0.002,3647.8,3647.7,13.67018714]
[1752990352046,0.002,3647.8,3647.7,14.48948714]
[1752990352556,0.002,3647.8,3647.7,15.03948714]
[1752990352986,0.002,3647.8,3647.7,13.21168714]
[1752990353657,0.002,3647.8,3647.7,13.67018714]
[1752990356056,0.002,3647.8,3647.7,13.21168714]
[1752990356555,0.4756,3647.8,3647.7,7.53825349]
[1752990356756,0.4756,3647.8,3647.7,10.53825349]
[1752990356950,0.8148,3647.8,3647.7,10.53825349]
[1752990357184,1.2884,3647.8,3647.7,4.79679998]
[1752990358682,5.7424,3647.8,3647.7,4.79679998]
[1752990358882,6.59096507,3647.8,3647.7,4.79679998]
[1752990359082,9.33234343,3647.8,3647.7,4.79679998]
[1752990359446,9.33234343,3647.8,3647.7,0.1368]
[1752990359649,9.33234343,3647.8,3647.2,3.0]
[1752990359650,2.74156168,3647.6,3647.2,3.0]
[1752990359849,1.2395,3647.5,3647.2,3.0]
[1752990360290,0.4692,3647.4,3647.2,3.0]
[1752990360697,1.2395,3647.3,3647.2,3.0]
[1752990361195,1.2395,3647.3,3647.2,3.1368]
[1752990362451,1.2395,3647.3,3647.2,0.1368]
[1752990363549,5.6905,3647.3,3647.2,0.1368]
[1752990364747,1.2395,3647.3,3647.2,0.1368]
[1752990364947,5.6905,3647.3,3647.2,0.1368]
[1752990365397,5.6905,3647.3,3647.2,3.1368]
[1752990365807,1.2395,3647.3,3647.2,0.1368]
[1752990366104,5.6845,3647.3,3647.2,0.1368]
[1752990366458,1.2395,3647.3,3647.2,0.1368]
[1752990366653,4.9142,3647.3,3647.2,0.1368]
[1752990366893,0.4692,3647.3,3647.2,0.1368]
[1752990367190,4.9132,3647.3,3647.2,0.1368]
[1752990368382,0.4692,3647.3,3647.2,0.1368]
[1752990368585,4.9132,3647.3,3647.2,0.1368]
[1752990369488,0.8016,3647.5,3647.2,0.1368]
[1752990369690,4.441,3647.3,3647.2,0.1368]
[1752990369996,4.9102,3647.3,3647.2,0.1368]
[1752990373597,4.9102,3647.3,3647.1,3.001]
[1752990373598,2.74182934,3647.2,3647.1,0.001]
[1752990373756,3.51192934,3647.2,3647.1,0.001]
[1752990373956,3.98112934,3647.2,3647.1,0.001]
[1752990377807,4.53112934,3647.2,3647.1,0.001]
[1752990378000,6.10205154,3647.2,3647.1,1e-08]
[1752990379902,3.55903089,3646.4,3646.3,0.001]
[1752990380104,7.99603089,3646.4,3646.3,0.001]
[1752990380266,10.04307409,3646.4,3646.3,0.001]
[1752990380467,10.51227409,3646.4,3646.3,0.001]
[1752990380668,11.06227409,3646.4,3646.3,0.001]
[1752990380901,11.06227409,3646.4,3646.3,1e-08]
[1752990381402,14.43790134,3646.4,3646.3,1e-08]
[1752990382391,3.55005745,3645.7,3645.6,0.001]
[1752990382596,11.14311998,3645.7,3645.6,0.001]
[1752990382899,11.61231998,3645.7,3645.6,0.001]
[1752990385206,12.16231998,3645.7,3645.6,1e-08]
[1752990385407,13.65283851,3645.7,3645.6,1e-08]
[1752990389499,16.65283851,3645.7,3645.6,1e-08]
[1752990392882,16.64783851,3645.7,3645.6,1e-08]
[1752990395528,12.20983851,3645.7,3645.6,1e-08]
[1752990395815,16.63783851,3645.7,3645.6,1e-08]
[1752990397496,4.10770794,3645.5,3645.4,1e-08]
[1752990397808,41.53370794,3645.5,3645.4,1e-08]
[1752990397986,42.00340794,3645.5,3645.4,1e-08]
[1752990400110,42.14639179,3645.5,3645.4,1e-08]
[1752990402123,4.10823476,3644.8,3644.6,0.001]
[1752990402426,11.81709729,3644.8,3644.6,0.001]
[1752990402931,12.28679729,3644.8,3644.6,0.001]
[1752990410925,7.86479729,3644.8,3644.6,0.001]
[1752990411100,12.27979729,3644.8,3644.6,0.001]
[1752990411296,13.77031582,3644.8,3644.6,0.001]
[1752990412136,5.18555329,3644.8,3644.6,0.001]
[1752990412357,7.84543476,3644.8,3644.6,0.001]
[1752990412855,3.43043476,3644.8,3644.7,0.7729]
[1752990413032,2.88043476,3644.8,3644.7,1.2183]
[1752990413232,7.29243476,3644.8,3644.7,1.2183]
[1752990413434,4.5488,3644.8,3644.7,1.2183]
[1752990413601,7.29243476,3644.8,3644.7,1.2183]
[1752990413801,7.29143476,3644.8,3644.7,1.2183]
[1752990414856,7.29143476,3644.8,3644.7,0.7729]
[1752990415155,2.88043476,3644.8,3644.7,0.7729]
[1752990415343,7.29143476,3644.8,3644.7,0.7729]
[1752990415823,7.29143476,3644.8,3644.7,1.2183]
[1752990416568,0.55,3645.5,3644.7,1.2183]
[1752990416750,0.1368,3645.1,3644.8,0.4454]
[1752990417069,4.408,3645.0,3644.7,0.7729]
[1752990417366,2.74355949,3644.9,3644.8,0.4454]
[1752990418927,4.408,3645.0,3644.7,0.7729]
[1752990418928,2.74363476,3644.8,3644.7,0.7729]
[1752990419144,9.92602791,3644.8,3644.7,0.001]
[1752990419454,3.2939359,3644.4,3644.3,0.001]
[1752990419658,10.85399843,3644.4,3644.3,0.001]
[1752990420021,11.30889843,3644.4,3644.3,0.001]
[1752990420223,13.28854368,3644.4,3644.3,0.001]
[1752990421362,12.83364368,3644.4,3644.3,0.001]
[1752990424970,13.28854368,3644.4,3644.3,0.001]
[1752990425536,12.83364368,3644.4,3644.3,0.001]
[1752990426169,5.27358115,3644.4,3644.3,0.001]
[1752990426349,7.6929359,3644.4,3644.3,0.001]
[1752990426745,2.7439359,3644.4,3644.3,0.001]
[1752990426951,7.1419359,3644.4,3644.3,0.001]
[1752990429266,2.7439359,3644.4,3644.3,0.001]
[1752990429462,7.2717359,3644.4,3644.3,0.4756]
[1752990429771,0.1368,3644.4,3644.3,0.4756]
[1752990429963,4.391,3644.4,3644.3,0.4756]
[1752990430844,4.39,3644.4,3644.3,0.4756]
[1752990438087,4.374,3644.4,3644.3,0.4756]
[1752990438783,4.374,3644.4,3644.3,0.001]
[1752990438784,7.1179359,3644.4,3644.3,0.001]
[1752990440682,4.374,3644.4,3644.3,0.001]
[1752990440888,7.1179359,3644.4,3644.3,0.001]
[1752990441086,4.374,3644.4,3644.3,0.4756]
[1752990442190,7.1179359,3644.4,3644.3,0.4756]
[1752990442885,4.374,3644.4,3644.3,0.4756]
[1752990443494,7.1179359,3644.4,3644.3,0.4756]
[1752990443858,4.374,3644.4,3644.3,0.001]
[1752990444076,4.374,3644.4,3644.3,1.3972]
[1752990445797,7.1179359,3644.4,3644.3,0.9226]
[1752990445986,7.82992949,3644.4,3644.3,0.001]
[1752990447193,8.28482949,3644.4,3644.3,0.001]
[1752990448508,7.82992949,3644.4,3644.3,0.001]
[1752990451126,2.7439359,3644.4,3644.3,0.001]
[1752990451289,7.0929359,3644.4,3644.3,0.001]
[1752990451613,2.7439359,3644.4,3644.3,0.001]
[1752990451821,7.0919359,3644.4,3644.3,0.4425]
[1752990452924,7.0899359,3644.4,3644.3,0.4425]
[1752990453418,2.7439359,3644.4,3644.3,0.4425]
[1752990453614,7.0899359,3644.4,3644.3,0.4425]
[1752990454709,2.7439359,3644.4,3644.3,0.4425]
[1752990455010,7.0889359,3644.4,3644.3,0.4425]
[1752990455408,7.0889359,3644.4,3644.3,0.001]
[1752990456215,2.7439359,3644.4,3644.3,0.001]
[1752990456416,7.0829359,3644.4,3644.3,0.001]
[1752990457419,8.12352851,3644.4,3644.3,0.001]
[1752990459524,8.56392851,3644.4,3644.3,0.001]
[1752990460432,8.12352851,3644.4,3644.3,0.001]
[1752990460793,7.0829359,3644.4,3644.3,0.001]
[1752990463395,7.0789359,3644.4,3644.3,0.001]
[1752990467138,7.5193359,3644.4,3644.3,0.001]
[1752990471938,8.4641359,3644.4,3644.3,0.001]
[1752990478268,9.0141359,3644.4,3644.3,0.001]
[1752990478420,10.50513476,3644.4,3644.3,0.001]
[1752990484127,6.17013476,3644.4,3644.3,0.001]
[1752990484358,9.0121359,3644.4,3644.3,0.001]
[1752990485065,2.8807359,3644.4,3644.3,0.001]
[1752990485266,7.2137359,3644.4,3644.3,0.001]
[1752990486572,0.1368,3644.4,3644.3,0.001]
[1752990486777,4.333,3644.4,3644.3,1.2621]
[1752990487079,4.333,3644.4,3644.3,1.3989]
[1752990487651,7.0769359,3644.4,3644.3,0.1378]
[1752990487849,4.333,3644.4,3644.3,0.1378]
[1752990488150,4.333,3644.4,3644.3,0.6113]
[1752990488527,0.002,3644.6,3644.3,1.4102]
[1752990488760,0.002,3644.6,3644.4,0.4735]
[1752990488761,4.333,3644.5,3644.4,0.4735]
[1752990489277,4.333,3644.5,3644.4,0.6103]
[1752990489785,0.002,3644.6,3644.4,0.6103]
[1752990490088,0.002,3644.6,3644.5,4.36579681]
[1752990490253,4.335,3644.6,3644.5,4.36579681]
[1752990491383,0.002,3644.6,3644.5,7.36579681]
[1752990493290,0.002,3644.6,3644.5,4.6219362]
[1752990493457,0.002,3644.6,3644.5,0.7989]
[1752990494167,0.002,3644.6,3644.5,1.2724]
[1752990494552,0.002,3644.6,3644.4,0.1368]
[1752990494759,2.74386061,3644.5,3644.3,4.66099998]
[1752990494959,4.331,3644.4,3644.3,0.001]
[1752990496900,7.0749359,3644.4,3644.3,0.001]
[1752990503808,10.22499843,3644.4,3644.3,0.001]
[1752990503972,11.46169843,3644.4,3644.3,0.001]
[1752990504172,12.9532251,3644.4,3644.3,0.001]
[1752990506420,5.03676257,3644.4,3644.3,0.001]
[1752990506616,0.002,3644.6,3644.3,0.4745]
[1752990506820,4.33,3644.5,3644.3,0.4745]
[1752990507025,2.7439359,3644.4,3644.3,0.001]
[1752990507371,7.07386784,3644.5,3644.3,0.001]
[1752990507569,0.002,3644.6,3644.4,0.7513]
[1752990507886,2.74310451,3645.6,3644.4,0.7513]
[1752990507887,0.8052,3646.4,3644.5,6.61326253]
[1752990508209,1.165,3645.8,3645.3,6.49455844]
[1752990508911,1.165,3645.8,3645.3,6.95775844]
[1752990509720,4.331,3645.4,3645.3,6.95775844]
[1752990517990,4.331,3645.4,3645.3,7.09455844]
[1752990522492,4.331,3645.4,3645.3,6.63135844]
[1752990522696,4.331,3645.4,3645.3,7.56883462]
[1752990523537,4.331,3645.4,3645.3,8.03203462]
[1752990527663,0.002,3645.4,3645.3,8.03203462]
[1752990527869,4.325,3645.4,3645.3,8.03203462]
[1752990528327,0.002,3645.4,3645.3,8.03203462]
[1752990528728,0.002,3646.1,3646.0,3.53873176]
[1752990528955,0.002,3646.1,3646.0,7.35580494]
[1752990532132,0.002,3646.1,3646.0,11.67780494]
[1752990534666,0.002,3646.1,3646.0,7.35580494]
[1752990536456,0.002,3646.1,3646.0,11.67580494]
[1752990537002,0.002,3646.1,3646.0,16.33580492]
[1752990537706,0.002,3646.2,3646.1,5.74265653]
[1752990537852,0.002,3646.2,3646.1,8.4110192]
[1752990538059,0.002,3646.2,3646.1,8.8542192]
[1752990538894,0.002,3646.2,3646.1,8.9910192]
[1752990540992,0.002,3646.2,3646.1,8.5478192]
[1752990541373,0.002,3646.2,3646.1,8.9910192]
[1752990542978,0.002,3646.2,3646.1,13.65101918]
[1752990548425,0.002,3646.2,3646.1,17.96801918]
[1752990554451,0.002,3646.2,3646.1,16.76431918]
[1752990554855,0.002,3646.2,3646.1,7.7873192]
[1752990555061,0.002,3646.2,3646.1,12.1013192]
[1752990555223,1e-08,3646.2,3646.1,9.4227192]
[1752990557919,0.002,3646.9,3646.1,9.4227192]
[1752990558119,0.002,3646.9,3646.4,7.10863089]
[1752990558331,0.002,3646.9,3646.6,2.74222036]
[1752990558546,0.002,3646.9,3646.7,8.15662205]
[1752990558747,0.002,3646.9,3646.8,5.76955138]
[1752990559126,0.002,3646.9,3646.8,6.21275138]
[1752990559329,0.002,3646.9,3646.8,7.15054725]
[1752990559529,0.002,3646.9,3646.8,11.11680978]
[1752990559836,0.002,3646.9,3646.8,8.40994725]
[1752990561045,0.002,3646.9,3646.8,8.95994725]
[1752990562045,1e-08,3646.9,3646.8,8.95994725]
[1752990562251,1e-08,3646.9,3646.8,9.16510985]
[1752990563753,1e-08,3646.9,3646.8,13.82510983]
[1752990564148,1e-08,3647.0,3646.9,2.74205489]
[1752990564353,0.002,3647.8,3647.6,3.7717]
[1752990564572,0.002,3647.8,3647.7,0.02741453]
[1752990564746,0.002,3647.8,3647.7,7.07986804]
[1752990564954,0.002,3647.8,3647.7,10.49565351]
[1752990565151,0.002,3647.8,3647.7,10.63245351]
[1752990565357,0.002,3647.8,3647.7,11.01124844]
[1752990565759,0.002,3647.8,3647.7,10.56704844]
[1752990567672,0.002,3647.8,3647.7,6.25704844]
[1752990569597,0.002,3647.8,3647.7,10.91704842]
[1752990574801,0.002,3647.8,3647.7,8.17559491]
[1752990575102,0.002,3647.8,3647.7,6.25704844]
[1752990576694,0.002,3647.8,3647.7,10.56304844]
[1752990577010,0.002,3647.8,3647.7,6.25704844]
[1752990577206,0.002,3647.8,3647.7,10.56304844]
[1752990577503,0.002,3647.8,3647.7,6.25704844]
[1752990577706,0.002,3647.8,3647.7,10.56304844]
[1752990577906,0.002,3647.8,3647.7,6.25704844]
[1752990578204,0.002,3647.8,3647.7,10.56304844]
[1752990578997,0.4711,3647.8,3647.7,6.25704844]
[1752990579198,0.4711,3647.8,3647.7,5.87825351]
[1752990584417,0.4711,3647.8,3647.7,10.53825349]
[1752990585739,0.002,3647.8,3647.7,10.53825349]
[1752990586926,0.002,3647.8,3647.7,11.00065349]
[1752990587505,0.002,3647.8,3647.7,10.53825349]
[1752990587714,0.002,3647.8,3647.7,12.42262906]
[1752990591430,0.002,3647.8,3647.7,12.88502906]
[1752990598644,0.002,3647.8,3647.7,12.42262906]
[1752990601853,0.002,3647.8,3647.7,12.86952906]
[1752990603557,0.002,3647.8,3647.7,12.42262906]
[1752990604518,0.002,3647.8,3647.7,12.86952906]
[1752990604953,0.002,3647.8,3647.7,12.42262906]
[1752990605130,0.002,3647.8,3647.7,12.86952906]
[1752990606758,0.002,3647.8,3647.7,13.41952906]
[1752990607351,0.002,3648.6,3648.5,2.7408524]
[1752990607527,0.002,3648.6,3648.5,11.03041041]
[1752990607732,0.4314,3648.6,3648.5,11.03041041]
[1752990607928,0.002,3648.6,3648.5,11.03041041]
[1752990608366,0.002,3648.6,3648.5,6.37041043]
[1752990609384,0.4314,3648.6,3648.5,6.37041043]
[1752990611090,1.2489,3648.6,3648.5,3.1368]
[1752990611861,1.2489,3648.6,3648.5,0.1368]
[1752990612355,3.98967728,3648.6,3648.5,0.1368]
[1752990612557,0.8081,3648.3,3647.8,4.65999998]
[1752990612965,0.8081,3648.3,3648.2,0.1368]
[1752990613273,3.54910265,3648.3,3648.2,0.1368]
[1752990613477,4.17829923,3648.3,3648.2,0.1368]
[1752990613774,4.60769923,3648.3,3648.2,0.1368]
[1752990614160,4.60769923,3648.3,3647.3,3.0]
[1752990614161,0.8081,3647.9,3647.3,3.0]
[1752990614481,0.8081,3647.9,3647.7,3.0]
[1752990614650,1.2375,3647.9,3647.8,0.1368]
[1752990615780,0.8081,3647.9,3647.8,5.87817836]
[1752990615960,4.7214,3648.1,3647.9,5.74129067]
[1752990616370,0.8081,3648.2,3648.0,0.1368]
[1752990616561,5.5295,3648.4,3648.1,2.74108578]
[1752990616885,0.4294,3648.3,3648.1,2.74108578]
[1752990617082,5.1001,3648.4,3648.3,0.1368]
[1752990617787,5.5295,3648.4,3648.3,0.1368]
[1752990618286,2.74120546,3648.1,3647.9,0.1368]
[1752990618486,0.7709,3648.0,3647.9,0.1368]
[1752990618662,1.2003,3648.0,3647.9,0.1368]
[1752990621253,3.94152807,3648.0,3647.9,0.1368]
[1752990621471,4.60979445,3648.0,3647.9,0.1368]
[1752990622597,1.86856638,3648.0,3647.9,0.1368]
[1752990623759,4.60979445,3648.0,3647.9,0.1368]
[1752990623970,1.86856638,3648.0,3647.9,0.1368]
[1752990624361,1.2003,3648.0,3647.9,0.1368]
[1752990624996,5.4903,3648.0,3647.9,0.1368]
[1752990625197,1.2003,3648.0,3647.9,0.1368]
[1752990625659,5.4893,3648.0,3647.9,0.1368]
[1752990632298,8.23052807,3648.0,3647.9,0.1368]
[1752990632499,9.32768955,3648.0,3647.6,0.1368]
[1752990632666,2.74130853,3647.9,3647.6,0.1368]
[1752990632869,0.78,3647.8,3647.6,0.1368]
[1752990633069,4.287,3647.7,3647.6,0.1368]
[1752990633400,4.7519,3647.7,3647.6,0.1368]
[1752990633805,2.74153693,3647.6,3647.1,0.001]
[1752990634107,0.78,3647.2,3647.1,0.001]
[1752990634408,7.80782934,3647.2,3647.1,0.001]
[1752990634912,8.27272934,3647.2,3647.1,0.001]
[1752990635214,9.3741705,3647.2,3647.1,0.001]
[1752990637416,13.07423303,3647.2,3647.1,0.001]
[1752990640197,43.07423303,3647.2,3647.1,0.001]
[1752990641210,13.07423303,3647.2,3647.1,0.001]
[1752990644630,43.07423303,3647.2,3647.1,1e-08]
[1752990645034,46.07423303,3647.2,3647.1,1e-08]
[1752990645407,16.07423303,3647.2,3647.1,1e-08]
[1752990645607,46.07423303,3647.2,3647.1,1e-08]
[1752990649829,46.27727095,3647.2,3647.1,1e-08]
[1752990651514,46.27727095,3647.2,3646.4,0.001]
[1752990651515,3.29235568,3646.5,3646.4,0.001]
[1752990651719,3.29235568,3646.5,3646.4,1e-08]
[1752990651720,11.50381821,3646.5,3646.4,1e-08]
[1752990652020,11.96871821,3646.5,3646.4,1e-08]
[1752990654857,14.96871821,3646.5,3646.4,1e-08]
[1752990655033,15.90576386,3646.5,3646.4,1e-08]
[1752990657231,2.74288222,3645.8,3645.7,0.001]
[1752990657452,11.48634475,3645.8,3645.7,0.001]
[1752990657767,11.95214475,3645.8,3645.7,0.001]
[1752990657965,13.05358591,3645.8,3645.7,0.001]
[1752990661165,43.05358591,3645.8,3645.7,0.001]
[1752990661372,13.05358591,3645.8,3645.7,0.001]
[1752990661783,3.29318318,3645.4,3644.9,0.001]
[1752990661966,11.48464571,3645.4,3644.9,0.001]
[1752990662143,13.64751513,3645.4,3644.9,0.001]
[1752990663897,1.10144116,3645.8,3644.9,0.001]
[1752990664066,0.1368,3645.5,3645.3,0.4389]
[1752990664398,7.02218318,3645.4,3645.3,0.001]
[1752990664560,4.279,3645.4,3645.3,0.001]
[1752990664748,7.02218318,3645.4,3645.3,0.001]
[1752990665254,4.278,3645.4,3645.3,1.209]
[1752990665769,7.02118318,3645.4,3645.3,1.209]
[1752990666380,8.01127736,3645.4,3645.3,0.001]
[1752990668364,8.47707736,3645.4,3645.3,0.001]
[1752990670059,8.01127736,3645.4,3645.3,0.001]
[1752990670963,0.1368,3645.5,3645.3,0.001]
[1752990671265,7.01918318,3645.4,3645.3,0.4389]
[1752990673003,7.01918318,3645.4,3645.3,0.001]
[1752990673200,7.01918318,3645.4,3645.3,0.4389]
[1752990674505,4.276,3645.4,3645.3,0.4389]